fUSD/lending_fUSD_20241122
["ID","MTS","AMOUNT","RATE_DAILY","PERIOD"]
[343049668,1732311053944,-1696.48,0.00095999,120]
[343049669,1732311053954,-1696.48,0.00095999,120]
[343049670,1732311054025,-1696.48,0.00095999,120]
[343049671,1732311054035,-1696.48,0.00095999,120]
[343049672,1732311054045,-1696.48,0.00095999,120]
[343049673,1732311054054,-366.377877,0.00095999,120]
[343049674,1732311054064,-1696.48,0.00095999,120]
[343049675,1732311054073,-1696.68,0.00095999,120]
[343049676,1732311054083,-366.377877,0.00095999,120]
[343049677,1732311054092,-500.0,0.00095999,120]
[343049678,1732311054102,-500.0,0.00095999,120]
[343049679,1732311054112,-500.0,0.00095999,120]
[343049680,1732311054122,-500.0,0.00095999,120]
[343049681,1732311054131,-271.78,0.00095999,120]
[343049682,1732311054141,-629.88,0.00095999,120]
[343049683,1732311054152,-629.88,0.00095999,120]
[343049684,1732311054163,-629.88,0.00095999,120]
[343049685,1732311054172,-629.88,0.00095999,120]
[343049686,1732311054182,-629.88,0.00095999,120]
[343049687,1732311054191,-500.0,0.00095999,120]
[343049688,1732311054200,-500.0,0.00095999,120]
[343049689,1732311054210,-500.0,0.00095999,120]
[343049690,1732311054219,-500.0,0.00095999,120]
[343049691,1732311054228,-500.0,0.00095999,120]
[343049692,1732311054237,-500.0,0.00095999,120]
[343049693,1732311054246,-500.0,0.00095999,120]
[343049694,1732311054255,-500.0,0.00095999,120]
[343049695,1732311054265,-500.0,0.00095999,120]
[343049696,1732311054274,-629.88,0.00095999,120]
[343049697,1732311054284,-297.15255283,0.00095999,120]
[343049698,1732311054294,-629.88,0.00095999,120]
[343049699,1732311054304,-629.88,0.00095999,120]
[343049700,1732311054313,-629.88,0.00095999,120]
[343049701,1732311054324,-629.88,0.00095999,120]
[343049702,1732311054336,-629.88,0.00095999,120]
[343049703,1732311054346,-629.97804246,0.00095999,120]
[343049704,1732311054356,-151.0,0.00095999,120]
[343049705,1732311054367,-500.0,0.00095999,120]
[343049706,1732311054377,-500.0,0.00095999,120]
[343049707,1732311054387,-500.0,0.00095999,120]
[343049708,1732311054400,-500.0,0.00095999,120]
[343049709,1732311054411,-500.0,0.00095999,120]
[343049710,1732311054421,-500.0,0.00095999,120]
[343049711,1732311054430,-500.0,0.00095999,120]
[343049712,1732311054440,-500.0,0.00095999,120]
[343049713,1732311054450,-500.0,0.00095999,120]
[343049714,1732311054460,-500.0,0.00095999,120]
[343049715,1732311054470,-500.0,0.00095999,120]
[343049716,1732311054479,-465.12,0.00095999,120]
[343049717,1732311054489,-500.0,0.00095999,120]
[343049718,1732311054498,-500.0,0.00095999,120]
[343049719,1732311054508,-500.0,0.00095999,120]
[343049720,1732311054517,-500.0,0.00095999,120]
[343049721,1732311054526,-100000.0,0.00096,94]
[343049722,1732311054535,-278371.66709535,0.00096,120]
[343049723,1732311054593,-445.42957939,0.00096,120]
[343049724,1732311054604,-1470.87908501,0.00096,120]
[343049725,1732311054730,-500.0,0.00079999,120]
[343049726,1732311054740,-355.4375,0.00079999,120]
[343049727,1732311054750,-500.0,0.000881,120]
[343049728,1732311054759,-500.0,0.000881,120]
[343049729,1732311054768,-500.0,0.00088887,120]
[343049730,1732311054777,-500.0,0.00088887,120]
[343049731,1732311054786,-500.0,0.00088887,120]
[343049732,1732311054795,-500.0,0.00088887,120]
[343049733,1732311054804,-502.34865991,0.00089302,120]
[343049734,1732311054814,-150.0,0.00092657,120]
[343049735,1732311054823,-150.0,0.00095657,120]
[343049736,1732311054832,-4194.21384009,0.00096,120]
[343049737,1732311054843,-16595.65287592,0.00096,120]
[343049738,1732311054855,-4461.00142383,0.00096,120]
[343049739,1732311054866,-2860.2,0.00096,120]
[343049740,1732311054877,-10142.8895,0.00096,120]
[343049741,1732311054888,-9086.0882705,0.00096,120]
[343049742,1732311054900,-2107.5380005,0.00096,120]
[343049743,1732311054912,-377.508,0.00096,120]
[343049744,1732311054928,-732.18335078,0.00096,120]
[343049745,1732311054943,-295.2679983,0.00096,120]
[343049746,1732311054964,-15638.92081814,0.00096,120]
[343049747,1732311054978,-18396.81329411,0.00096,120]
[343049748,1732311054989,-788.493,0.00096,120]
[343049749,1732311055000,-423.06550897,0.00096,120]
[343049750,1732311055119,-500.0,0.00079999,120]
[343049751,1732311055129,-500.0,0.00079999,120]
[343049752,1732311055138,-500.0,0.00079999,120]
[343049753,1732311055149,-317.06246574,0.00088001,2]
[343049754,1732311055248,-500.0,0.000881,120]
[343049755,1732311055258,-500.0,0.000881,120]
[343049756,1732311055267,-500.0,0.000881,120]
[343049757,1732311055277,-502.37468297,0.00088887,120]
[343049758,1732311055286,-500.0,0.00088887,120]
[343049759,1732311055295,-500.0,0.00088887,120]
[343049760,1732311055305,-500.0,0.00088887,120]
[343049761,1732311055315,-500.0,0.00089302,7]
[343049762,1732311055331,-1652.391111,0.00089999,120]
[343049763,1732311055340,-1652.391111,0.00092846,120]
[343049764,1732311055349,-1652.391111,0.0009405,120]
[343049765,1732311055359,-1652.391111,0.000949,120]
[343049766,1732311055370,-290904.18835911,0.00096,120]
[343049767,1732311055379,-16999.99999901,0.00096,120]
[343049768,1732311055389,-900.0,0.00096,97]
[343049769,1732311055399,-432694.81004917,0.00096,120]
[343049770,1732311055411,-378.22097235,0.00096,120]
[343049771,1732311055423,-408.4920014,0.00096,120]
[343049772,1732311055434,-831.54528556,0.00096,120]
[343049773,1732311055445,-830.00175765,0.00096,120]
[343049774,1732311055456,-733.3,0.00096,120]
[343049775,1732311055467,-469.84,0.00096,120]
[343049776,1732311055479,-4106.93220477,0.00096,120]
[343049777,1732311055490,-471.65381147,0.00096,120]
[343049778,1732311055509,-500.0,0.00088887,120]
[343049779,1732311055518,-351.72002909,0.00096,120]
[343049780,1732311055529,-102454.52283988,0.00096,120]
[343049781,1732311055541,-4014.18528491,0.00096,120]
[343049782,1732311055556,-1652.391111,0.00095,120]
[343049783,1732311055565,-4980.09359396,0.00096,120]
[343049784,1732311055576,-65399.9999995,0.00096,120]
[343049785,1732311055590,-500.0,0.00089302,120]
[343049786,1732311055600,-17027.25486953,0.00096,120]
[343049787,1732311055611,-47894.40000053,0.00096,120]
[343049788,1732311055774,-500.0,0.00079999,120]
[343049789,1732311055784,-510.79669263,0.00079999,120]
[343049790,1732311055794,-500.0,0.00079999,120]
[343049791,1732311055803,-500.0,0.00079999,120]
[343049792,1732311055812,-500.0,0.00079999,120]
[343049793,1732311055822,-500.0,0.000881,120]
[343049794,1732311055831,-500.0,0.00089302,120]
[343049795,1732311055841,-500.0,0.00089712,120]
[343049796,1732311055850,-500.0,0.00089989,120]
[343049797,1732311055860,-1652.391111,0.00089999,120]
[343049798,1732311055868,-500.0,0.00091206,120]
[343049799,1732311055878,-500.0,0.00091216,120]
[343049800,1732311055887,-629.0,0.00091753,120]
[343049801,1732311055896,-500.0,0.00091989,120]
[343049802,1732311055905,-1652.391111,0.00092846,120]
[343049803,1732311055915,-471.79438047,0.00093989,120]
[343049804,1732311055924,-500.0,0.00093998,120]
[343049805,1732311055933,-1652.391111,0.0009405,120]
[343049806,1732311055943,-643.23934471,0.0009488,120]
[343049807,1732311055952,-1652.391111,0.000949,120]
[343049808,1732311055961,-1652.391111,0.00095999,120]
[343049809,1732311055973,-102729.19014318,0.00096,120]
[343049810,1732311055984,-2558.17110602,0.00096,120]
[343049811,1732311055995,-9886.22897799,0.00096,120]
[343049812,1732311056006,-512.87096802,0.00096,120]
[343049813,1732311056017,-506.7,0.00096,120]
[343049814,1732311056047,-1652.391111,0.00095,120]
[343049815,1732311056057,-2637.80880195,0.00096,120]
[343049816,1732311056068,-2815.1532053,0.00096,120]
[343049817,1732311056078,-661.9904841,0.00096,120]
[343049818,1732311056089,-651.37155676,0.00096,120]
[343049819,1732311056100,-1247.98589308,0.00096,120]
[343049820,1732311056311,-500.0,0.00088887,120]
[343049821,1732311056325,-37973.45903818,0.00096,120]
[343049822,1732311056336,-32020.46721473,0.00096,120]
[343049823,1732311056409,-1478.025,0.00096,120]
[343049824,1732311056428,-500.0,0.000881,120]
[343049825,1732311056437,-899.99991766,0.00095999,120]
[343049826,1732311056449,-752.39119334,0.00095999,120]
[343049827,1732311056458,-17860.71312666,0.00096,120]
[343049828,1732311056469,-13601.46275846,0.00096,120]
[343049829,1732311056480,-39375.463,0.00096,120]
[343049830,1732311123762,800.0,0.00026986,120]
[343049831,1732311234355,405.0,0.00048,60]
[343049832,1732311252279,250.0,0.00031,2]
[343049833,1732311303323,900.0,0.00052,53]
[343049834,1732311502550,155.5,0.00041096,2]
[343049836,1732311843526,186.91719324,0.00049766,2]
[343049837,1732312038090,-150.0,0.00052224,120]
[343049838,1732312038111,-150.0,0.000525,120]
[343049839,1732312038134,-321.33680132,0.00053355,2]
[343049840,1732312038157,-321.33680132,0.00053545,2]
[343049841,1732312038179,-321.33680132,0.00053736,2]
[343049842,1732312038202,-321.33680132,0.00053927,2]
[343049843,1732312038224,-321.33680132,0.00054118,2]
[343049844,1732312038246,-321.33680132,0.00054309,2]
[343049845,1732312038269,-200.0,0.00054495,7]
[343049846,1732312038291,-321.33680132,0.000545,2]
[343049847,1732312038312,-188.28007,0.000546,120]
[343049848,1732312038332,-500.0,0.00054795,120]
[343049849,1732312038353,-167.16,0.00058758,2]
[343049850,1732312038374,-198.44,0.00059823,7]
[343049851,1732312038396,-150.0,0.00062612,2]
[343049852,1732312038416,-250.0,0.00063,2]
[343049853,1732312038436,-250.0,0.00063,5]
[343049854,1732312038458,-250.0,0.00063,40]
[343049855,1732312038479,-900.0,0.00063,64]
[343049856,1732312038500,-250.0,0.00063,10]
[343049857,1732312038522,-299.99,0.00063,120]
[343049858,1732312038543,-219.77585632,0.00063359,120]
[343049859,1732312038563,-200.0,0.00064,120]
[343049860,1732312038583,-641.97060494,0.000666,120]
[343049861,1732312038604,-182.898,0.0006678,120]
[343049862,1732312038625,-1126.225,0.0006678,120]
[343049863,1732312038649,-900.0,0.00067,68]
[343049864,1732312038670,-200.0,0.00068,120]
[343049865,1732312038692,-2832.57,0.00069171,4]
[343049866,1732312038713,-702.83,0.00069216,120]
[343049867,1732312038946,-250.0,0.00069643,120]
[343049868,1732312038969,-194.46,0.00069669,2]
[343049869,1732312038991,-2000.0,0.0007,120]
[343049870,1732312039016,-2832.57,0.00071901,4]
[343049871,1732312039040,-150.0,0.00072089,120]
[343049872,1732312039063,-150.81,0.0007271,120]
[343049873,1732312039085,-161.88,0.0007295,120]
[343049874,1732312039108,-155.5,0.00073059,120]
[343049875,1732312039130,-681.33,0.00073157,30]
[343049876,1732312039153,-163.75,0.00073209,2]
[343049877,1732312039175,-150.0,0.00073447,30]
[343049878,1732312039197,-150.0,0.00073459,120]
[343049879,1732312039221,-1000.0,0.00074055,120]
[343049880,1732312039243,-2832.57,0.00074631,4]
[343049881,1732312039267,-250.0,0.00074743,120]
[343049882,1732312039289,-227.84,0.00075962,2]
[343049883,1732312039311,-250.0,0.00076078,120]
[343049884,1732312039335,-200.0,0.00076741,2]
[343049885,1732312039363,-150.81,0.00076811,120]
[343049886,1732312039385,-2832.57,0.00077362,4]
[343049887,1732312039407,-1126.226,0.00077585,120]
[343049888,1732312039429,-157.432,0.000778,120]
[343049889,1732312039452,-702.83,0.00077868,120]
[343049890,1732312039476,-227.84,0.00078225,2]
[343049891,1732312039497,-167.29,0.0007881,2]
[343049892,1732312039519,-3931.1536,0.00079899,2]
[343049893,1732312039542,-217.205,0.00079899,2]
[343049894,1732312039563,-309.3384,0.00079899,2]
[343049895,1732312039585,-9933.3051,0.00079899,2]
[343049896,1732312039605,-220.4946,0.00079899,120]
[343049897,1732312039716,-5213.21580623,0.00079899,15]
[343049898,1732312039740,-152.65604206,0.00079899,15]
[343049899,1732312039763,-648.61318201,0.00079973,15]
[343049900,1732312039784,-500.0,0.00079973,15]
[343049901,1732312039805,-500.0,0.00079973,7]
[343049902,1732312039828,-839.37,0.00079989,30]
[343049903,1732312039849,-500.0,0.00079999,120]
[343049904,1732312039871,-500.0,0.00079999,120]
[343049905,1732312039894,-500.0,0.00079999,120]
[343049906,1732312039916,-500.0,0.00079999,120]
[343049907,1732312039937,-500.0,0.00079999,120]
[343049908,1732312039958,-500.0,0.00079999,120]
[343049909,1732312039978,-500.0,0.00079999,120]
[343049910,1732312039999,-500.0,0.00079999,120]
[343049911,1732312040020,-500.0,0.00079999,120]
[343049912,1732312040042,-500.0,0.00079999,120]
[343049913,1732312040063,-500.0,0.00079999,120]
[343049914,1732312040084,-500.0,0.00079999,120]
[343049915,1732312040104,-500.0,0.00079999,120]
[343049916,1732312040125,-500.0,0.00079999,120]
[343049917,1732312040148,-500.0,0.00079999,120]
[343049918,1732312040169,-500.0,0.00079999,120]
[343049919,1732312040190,-500.0,0.00079999,120]
[343049920,1732312040211,-500.0,0.00079999,120]
[343049921,1732312040238,-500.0,0.00079999,120]
[343049922,1732312040260,-500.0,0.00079999,120]
[343049923,1732312040280,-500.0,0.00079999,120]
[343049924,1732312040301,-500.0,0.00079999,120]
[343049925,1732312040324,-500.0,0.00079999,120]
[343049926,1732312040347,-500.0,0.00079999,120]
[343049927,1732312040368,-500.0,0.00079999,120]
[343049928,1732312040388,-590.32,0.00079999,120]
[343049929,1732312040409,-500.0,0.00079999,120]
[343049930,1732312040430,-500.0,0.00079999,120]
[343049931,1732312040450,-500.0,0.00079999,120]
[343049932,1732312040472,-500.0,0.00079999,120]
[343049933,1732312040493,-500.0,0.00079999,120]
[343049934,1732312040515,-500.0,0.00079999,120]
[343049935,1732312040535,-500.0,0.00079999,120]
[343049936,1732312040556,-500.0,0.00079999,120]
[343049937,1732312040576,-500.0,0.00079999,120]
[343049938,1732312040597,-500.0,0.00079999,120]
[343049939,1732312040619,-500.0,0.00079999,120]
[343049940,1732312040641,-500.0,0.00079999,120]
[343049941,1732312040666,-500.0,0.00079999,120]
[343049942,1732312040687,-500.0,0.00079999,120]
[343049943,1732312040707,-500.0,0.00079999,120]
[343049944,1732312040740,-500.0,0.00079999,120]
[343049945,1732312040767,-500.0,0.00079999,120]
[343049946,1732312040788,-500.0,0.00079999,120]
[343049947,1732312040809,-500.0,0.00079999,120]
[343049948,1732312040832,-379.09171907,0.00079999,120]
[343049949,1732312041123,-502.76321092,0.00066904,120]
[343049950,1732312041145,-120.90828093,0.00079999,120]
[343049951,1732312041166,-500.0,0.00079999,120]
[343049952,1732312041187,-220.03638927,0.00079999,120]
[343049953,1732312047112,-279.96361073,0.00079999,120]
[343049954,1732312047133,-33.92135027,0.00079999,120]
[343049965,1732312131140,153.0,0.00015,2]
[343049966,1732312139657,6348.15293277,0.0005001,60]
[343049969,1732312149102,-151.0,0.0007,120]
[343049970,1732312149124,-429.3114982,0.00079799,2]
[343049972,1732312164091,-157.449,0.000778,120]
[343049973,1732312164118,-1177.37250841,0.00079799,2]
[343049974,1732312164140,-192.23996268,0.00079799,2]
[343049975,1732312164163,-263.7786,0.00079899,2]
[343049976,1732312164186,-335.9469,0.00079899,2]
[343049977,1732312164208,-402.23064724,0.00079973,15]
[343049978,1732312164230,-500.0,0.00079999,120]
[343049979,1732312164251,-500.0,0.00079999,120]
[343049980,1732312164272,-500.0,0.00079999,120]
[343049981,1732312164294,-500.0,0.00079999,120]
[343049982,1732312164316,-500.0,0.00079999,120]
[343049983,1732312164337,-500.0,0.00079999,120]
[343049984,1732312164362,-499.68611315,0.00079999,120]
[343049985,1732312164384,-500.0,0.00079999,120]
[343049986,1732312164405,-500.0,0.00079999,120]
[343049987,1732312164427,-500.0,0.00079999,120]
[343049988,1732312164452,-500.0,0.00079999,120]
[343049989,1732312164473,-500.0,0.00079999,120]
[343049990,1732312164495,-500.0,0.00079999,120]
[343049991,1732312164516,-500.0,0.00079999,120]
[343049992,1732312164537,-579.26896148,0.00079999,120]
[343049993,1732312164558,-500.0,0.00079999,120]
[343049994,1732312164580,-500.0,0.00079999,120]
[343049995,1732312164603,-500.0,0.00079999,120]
[343049996,1732312164624,-500.0,0.00079999,120]
[343049997,1732312164646,-500.0,0.00079999,120]
[343049998,1732312164668,-500.0,0.00079999,120]
[343049999,1732312164814,-555.32615702,0.00079999,120]
[343050000,1732312164842,-500.0,0.00079999,120]
[343050001,1732312164865,-500.0,0.00079999,120]
[343050002,1732312164887,-500.0,0.00079999,120]
[343050003,1732312164908,-500.0,0.00079999,120]
[343050004,1732312164930,-495.42326107,0.00079999,120]
[343050005,1732312164952,-500.0,0.00079999,120]
[343050006,1732312164980,-500.0,0.00079999,120]
[343050007,1732312165004,-500.0,0.00079999,120]
[343050008,1732312165030,-500.0,0.00079999,120]
[343050009,1732312165055,-500.0,0.00079999,120]
[343050010,1732312165081,-500.0,0.00079999,120]
[343050011,1732312165112,-500.0,0.00079999,120]
[343050012,1732312165139,-500.0,0.00079999,120]
[343050013,1732312165164,-500.0,0.00079999,120]
[343050014,1732312165187,-500.0,0.00079999,120]
[343050015,1732312165210,-500.0,0.00079999,120]
[343050016,1732312165233,-500.0,0.00079999,120]
[343050017,1732312165255,-500.0,0.00079999,120]
[343050018,1732312165278,-502.10684856,0.00079999,120]
[343050019,1732312165300,-500.0,0.00079999,120]
[343050020,1732312165324,-500.0,0.00079999,120]
[343050021,1732312165351,-500.0,0.00079999,120]
[343050022,1732312165375,-500.0,0.00079999,120]
[343050023,1732312165398,-500.0,0.00079999,120]
[343050024,1732312165422,-500.0,0.00079999,120]
[343050025,1732312165444,-500.0,0.00079999,120]
[343050026,1732312165467,-500.0,0.00079999,120]
[343050027,1732312165499,-500.0,0.00079999,120]
[343050028,1732312165527,-501.20815972,0.00079999,120]
[343050029,1732312165550,-500.0,0.00079999,120]
[343050030,1732312165573,-500.0,0.00079999,120]
[343050031,1732312165598,-500.0,0.00079999,120]
[343050032,1732312165624,-500.0,0.00079999,120]
[343050033,1732312165649,-500.0,0.00079999,120]
[343050034,1732312165674,-500.0,0.00079999,120]
[343050035,1732312165701,-500.0,0.00079999,120]
[343050036,1732312165723,-500.0,0.00079999,120]
[343050037,1732312165749,-500.0,0.00079999,120]
[343050038,1732312165772,-500.79085384,0.00079999,120]
[343050039,1732312165795,-500.0,0.00079999,120]
[343050040,1732312165817,-500.0,0.00079999,120]
[343050041,1732312165841,-500.0,0.00079999,120]
[343050042,1732312165866,-500.0,0.00079999,120]
[343050043,1732312165889,-500.0,0.00079999,120]
[343050044,1732312165910,-500.0,0.00079999,120]
[343050045,1732312165932,-500.0,0.00079999,120]
[343050046,1732312165954,-500.0,0.00079999,120]
[343050047,1732312165976,-500.0,0.00079999,120]
[343050048,1732312165999,-500.0,0.00079999,120]
[343050049,1732312166022,-500.0,0.00079999,120]
[343050050,1732312166045,-500.0,0.00079999,120]
[343050051,1732312166069,-500.0,0.00079999,120]
[343050052,1732312166092,-500.0,0.00079999,120]
[343050053,1732312166118,-500.0,0.00079999,120]
[343050054,1732312166140,-500.0,0.00079999,120]
[343050055,1732312166161,-500.0,0.00079999,120]
[343050056,1732312166183,-500.0,0.00079999,120]
[343050057,1732312166204,-500.0,0.00079999,120]
[343050058,1732312166224,-500.0,0.00079999,120]
[343050059,1732312166245,-500.0,0.00079999,120]
[343050060,1732312166266,-500.0,0.00079999,120]
[343050061,1732312166288,-500.0,0.00079999,120]
[343050062,1732312166309,-500.0,0.00079999,120]
[343050063,1732312166334,-500.0,0.00079999,120]
[343050064,1732312166362,-500.0,0.00079999,120]
[343050065,1732312166382,-500.96066701,0.00079999,120]
[343050066,1732312166404,-500.0,0.00079999,120]
[343050067,1732312166425,-500.0,0.00079999,120]
[343050068,1732312166446,-500.0,0.00079999,120]
[343050069,1732312166467,-500.0,0.00079999,120]
[343050070,1732312166486,-500.0,0.00079999,120]
[343050071,1732312166506,-520.32899661,0.00079999,120]
[343050072,1732312166526,-500.0,0.00079999,120]
[343050073,1732312166547,-500.0,0.00079999,120]
[343050074,1732312166568,-500.0,0.00079999,120]
[343050075,1732312166590,-530.50683949,0.00079999,120]
[343050076,1732312166613,-500.0,0.00079999,120]
[343050077,1732312166635,-500.0,0.00079999,120]
[343050078,1732312166657,-500.0,0.00079999,120]
[343050079,1732312166683,-500.0,0.00079999,120]
[343050080,1732312166704,-500.0,0.00079999,120]
[343050081,1732312166728,-500.0,0.00079999,120]
[343050082,1732312166749,-500.0,0.00079999,120]
[343050083,1732312166772,-500.0,0.00079999,120]
[343050084,1732312166794,-500.0,0.00079999,120]
[343050085,1732312166817,-500.0,0.00079999,120]
[343050086,1732312166837,-500.0,0.00079999,120]
[343050087,1732312166861,-500.0,0.00079999,120]
[343050088,1732312166882,-500.0,0.00079999,120]
[343050089,1732312166904,-500.0,0.00079999,120]
[343050090,1732312166927,-503.58996149,0.00079999,120]
[343050091,1732312166948,-500.0,0.00079999,120]
[343050092,1732312166970,-500.0,0.00079999,120]
[343050093,1732312166992,-500.0,0.00079999,120]
[343050094,1732312167014,-500.0,0.00079999,120]
[343050095,1732312167035,-500.0,0.00079999,120]
[343050096,1732312167056,-500.0,0.00079999,120]
[343050097,1732312167077,-500.0,0.00079999,120]
[343050098,1732312167101,-500.0,0.00079999,120]
[343050099,1732312167124,-500.0,0.00079999,120]
[343050100,1732312167145,-500.0,0.00079999,120]
[343050101,1732312167165,-500.0,0.00079999,120]
[343050102,1732312167187,-500.0,0.00079999,120]
[343050103,1732312167207,-500.0,0.00079999,120]
[343050104,1732312167228,-700.0,0.00079999,120]
[343050105,1732312167248,-500.0,0.00079999,120]
[343050106,1732312167269,-500.0,0.00079999,120]
[343050107,1732312167289,-500.0,0.00079999,120]
[343050108,1732312167309,-500.0,0.00079999,120]
[343050109,1732312167330,-500.0,0.00079999,120]
[343050110,1732312167353,-500.0,0.00079999,120]
[343050111,1732312167373,-501.10942878,0.00079999,120]
[343050112,1732312167494,-500.0,0.00079999,120]
[343050113,1732312167516,-500.0,0.00079999,120]
[343050114,1732312167537,-500.0,0.00079999,120]
[343050115,1732312167558,-504.08728121,0.00079999,120]
[343050116,1732312167579,-500.0,0.00079999,120]
[343050117,1732312167603,-500.0,0.00079999,120]
[343050118,1732312167624,-500.0,0.00079999,120]
[343050119,1732312167645,-500.0,0.00079999,60]
[343050120,1732312167667,-500.0,0.00079999,120]
[343050121,1732312167691,-500.0,0.00079999,120]
[343050122,1732312167713,-500.0,0.00079999,120]
[343050123,1732312167735,-500.0,0.00079999,120]
[343050124,1732312167757,-500.0,0.00079999,120]
[343050125,1732312167780,-500.0,0.00079999,120]
[343050126,1732312167800,-500.0,0.00079999,120]
[343050127,1732312167820,-501.79976249,0.00079999,120]
[343050128,1732312167842,-503.02508234,0.00079999,120]
[343050129,1732312167868,-500.0,0.00079999,120]
[343050130,1732312167887,-500.0,0.00079999,120]
[343050131,1732312167909,-500.0,0.00079999,120]
[343050132,1732312167930,-500.0,0.00079999,120]
[343050133,1732312167952,-500.0,0.00079999,120]
[343050134,1732312167973,-500.0,0.00079999,120]
[343050135,1732312167993,-500.0,0.00079999,120]
[343050136,1732312168014,-500.0,0.00079999,120]
[343050137,1732312168034,-500.0,0.00079999,120]
[343050138,1732312168055,-500.0,0.00079999,120]
[343050139,1732312168075,-500.0,0.00079999,120]
[343050140,1732312168096,-500.0,0.00079999,120]
[343050141,1732312168118,-500.0,0.00079999,120]
[343050142,1732312168139,-500.0,0.00079999,120]
[343050143,1732312168159,-500.0,0.00079999,120]
[343050144,1732312168179,-504.8841819,0.00079999,120]
[343050145,1732312168198,-504.59226156,0.00079999,120]
[343050146,1732312168219,-500.0,0.00079999,7]
[343050147,1732312168239,-500.0,0.00079999,120]
[343050148,1732312168261,-500.0,0.00079999,120]
[343050149,1732312168281,-500.0,0.00079999,120]
[343050150,1732312168301,-500.0,0.00079999,120]
[343050151,1732312168321,-500.0,0.00079999,120]
[343050152,1732312168342,-500.0,0.00079999,120]
[343050153,1732312168365,-500.0,0.00079999,120]
[343050154,1732312168386,-647.90244938,0.00079999,120]
[343050155,1732312168406,-502.19879131,0.00079999,120]
[343050156,1732312168426,-500.0,0.00079999,120]
[343050157,1732312168448,-504.34486041,0.00079999,120]
[343050158,1732312168469,-500.0,0.00079999,120]
[343050159,1732312168489,-571.09637883,0.00079999,120]
[343050160,1732312168510,-500.0,0.00079999,120]
[343050161,1732312168530,-504.69757034,0.00079999,120]
[343050162,1732312168552,-500.0,0.00079999,120]
[343050163,1732312168572,-500.0,0.00079999,120]
[343050164,1732312168592,-503.73814467,0.00079999,120]
[343050165,1732312168615,-500.0,0.00079999,120]
[343050166,1732312168636,-500.0,0.00079999,120]
[343050167,1732312168656,-500.0,0.00079999,120]
[343050168,1732312168678,-500.0,0.00079999,120]
[343050169,1732312168702,-500.0,0.00079999,120]
[343050170,1732312168724,-501.53557343,0.00079999,120]
[343050171,1732312168745,-500.0,0.00079999,120]
[343050172,1732312168767,-500.0,0.00079999,120]
[343050173,1732312168788,-500.0,0.00079999,120]
[343050174,1732312168809,-500.0,0.00079999,120]
[343050175,1732312168830,-508.83241,0.00079999,120]
[343050176,1732312168854,-500.0,0.00079999,120]
[343050177,1732312168874,-500.0,0.00079999,120]
[343050178,1732312168896,-500.0,0.00079999,120]
[343050179,1732312168917,-199.09383025,0.00079999,120]
[343050180,1732312168938,-500.0,0.00079999,120]
[343050181,1732312168961,-500.0,0.00079999,120]